bitfinex-derivatives/quotes_SOLF0:USTF0_20250623
["timestamp","ask_amount","ask_price","bid_price","bid_amount"]
[1750711601595,7.0686,141.4,141.33,9.59420969]
[1750711601795,7.34070969,141.41,141.33,9.59420969]
[1750711602406,7.34070969,141.39,141.33,9.59420969]
[1750711602905,41.12,141.42,141.33,9.59420969]
[1750711602906,7.34070969,141.41,141.33,9.59420969]
[1750711603493,7.0688,141.39,141.35,7.0703]
[1750711604498,7.0688,141.39,141.36,7.0702]
[1750711604702,7.0685,141.4,141.36,7.0702]
[1750711606906,7.34070969,141.41,141.36,7.0702]
[1750711607108,7.34070969,141.39,141.36,7.0702]
[1750711607508,7.34070969,141.39,141.37,7.0696]
[1750711608618,14.40910969,141.4,141.37,7.0696]
[1750711609222,7.34070969,141.4,141.37,7.0696]
[1750711609924,14.40920969,141.4,141.36,7.07]
[1750711610216,7.34070969,141.4,141.36,7.07]
[1750711610608,7.34070969,141.4,141.35,7.0704]
[1750711611318,7.069,141.39,141.36,7.0702]
[1750711611716,7.34070969,141.4,141.33,9.59420969]
[1750711611906,7.0693,141.38,141.35,7.0704]
[1750711612109,7.34070969,141.4,141.33,9.59420969]
[1750711612414,7.0692,141.39,141.35,7.0703]
[1750711613610,7.0695,141.38,141.33,9.59420969]
[1750711613814,7.34070969,141.4,141.33,9.59420969]
[1750711614015,7.069,141.39,141.35,7.0707]
[1750711614315,7.34070969,141.4,141.35,7.0707]
[1750711614815,7.34070969,141.38,141.34,7.071]
[1750711615113,7.34070969,141.38,141.32,7.0721]
[1750711615114,14.41120969,141.36,141.32,7.0721]
[1750711615317,7.34070969,141.36,141.32,7.0721]
[1750711615501,7.34070969,141.36,141.3,7.34070969]
[1750711615915,7.0713,141.34,141.31,7.0725]
[1750711616710,7.34070969,141.36,141.29,41.16]
[1750711616903,41.16,141.38,141.27,9.77290969]
[1750711616904,7.34070969,141.34,141.27,9.77290969]
[1750711617103,48.50070969,141.34,141.27,9.77290969]
[1750711617307,48.50070969,141.34,141.28,7.074]
[1750711617617,48.50070969,141.34,141.27,2.4322]
[1750711617826,7.34070969,141.32,141.25,7.34070969]
[1750711618116,41.16,141.34,141.24,2.248]
[1750711618117,7.34070969,141.3,141.24,2.248]
[1750711618319,7.0748,141.27,141.24,7.076]
[1750711618618,7.34070969,141.28,141.23,41.16]
[1750711618815,7.34070969,141.28,141.21,7.34070969]
[1750711619025,7.0754,141.26,141.23,7.0765]
[1750711619221,7.34070969,141.26,141.2,43.4018]
[1750711620113,7.075,141.27,141.23,7.0765]
[1750711620517,7.075,141.27,141.21,7.34070969]
[1750711620715,41.16,141.3,141.23,7.34070969]
[1750711620921,7.34070969,141.29,141.23,7.34070969]
[1750711621219,41.16,141.3,141.21,7.0776]
[1750711621404,41.16,141.3,141.21,7.34070969]
[1750711621607,14.41460969,141.29,141.23,7.34070969]
[1750711621922,7.34070969,141.29,141.25,7.0754]
[1750711622312,7.34070969,141.29,141.24,7.0759]
[1750711622515,7.34070969,141.29,141.23,7.34070969]
[1750711622714,7.34070969,141.29,141.2,41.16]
[1750711623021,7.0747,141.28,141.24,7.076]
[1750711623214,7.34070969,141.29,141.24,7.076]
[1750711623428,7.34070969,141.29,141.22,7.34070969]
[1750711623429,7.34070969,141.29,141.25,7.0754]
[1750711623607,7.34070969,141.29,141.22,7.34070969]
[1750711624317,41.18,141.31,141.26,7.34070969]
[1750711624511,41.18,141.31,141.28,7.0738]
[1750711625324,48.2528,141.31,141.28,7.0738]
[1750711625625,41.18,141.31,141.26,7.34070969]
[1750711625918,41.18,141.31,141.27,7.34070969]
[1750711626328,41.18,141.31,141.28,7.074]
[1750711626520,41.18,141.31,141.25,7.34070969]
[1750711626927,7.34070969,141.3,141.24,7.0761]
[1750711627421,7.0753,141.26,141.22,7.0772]
[1750711627618,41.18,141.27,141.22,7.0772]
[1750711627819,7.076,141.25,141.22,7.0772]
[1750711628123,41.18,141.27,141.21,7.0775]
[1750711628124,7.34070969,141.26,141.21,7.0775]
[1750711628722,7.34070969,141.26,141.2,7.078]
[1750711628916,9.56010969,141.26,141.2,7.078]
[1750711629520,9.56010969,141.26,141.19,7.34070969]
[1750711629521,7.0766,141.24,141.21,7.0777]
[1750711630427,7.0767,141.23,141.2,7.078]
[1750711630819,7.0765,141.24,141.21,7.0774]
[1750711631917,7.0759,141.25,141.19,7.34070969]
[1750711632121,9.56010969,141.26,141.19,7.34070969]
[1750711632423,7.0765,141.24,141.21,7.0775]
[1750711634323,7.34070969,141.24,141.16,68.8956]
[1750711634534,7.34070969,141.24,141.17,7.34070969]
[1750711634833,7.0775,141.22,141.17,7.34070969]
[1750711635219,7.0779,141.21,141.18,7.0789]
[1750711635425,48.28070969,141.23,141.17,7.34070969]
[1750711635725,48.28070969,141.23,141.15,48.28070969]
[1750711635925,7.0787,141.2,141.17,7.0796]
[1750711636129,7.34070969,141.21,141.15,48.28070969]
[1750711636329,7.34070969,141.21,141.15,7.34070969]
[1750711636621,7.34070969,141.21,141.13,9.67210969]
[1750711636823,40.94,141.23,141.13,9.67210969]
[1750711636824,7.34070969,141.19,141.13,9.67210969]
[1750711637225,7.0795,141.18,141.15,7.0804]
[1750711639228,40.94,141.23,141.17,7.34070969]
[1750711639533,40.94,141.23,141.19,7.34070969]
[1750711639920,40.94,141.23,141.2,7.078]
[1750711640432,48.0168,141.23,141.2,7.078]
[1750711640735,48.28070969,141.23,141.17,7.34070969]
[1750711641036,7.0783,141.2,141.17,7.0795]
[1750711641425,7.0788,141.19,141.16,7.34070969]
[1750711641734,48.28070969,141.23,141.16,14.42060969]
[1750711642235,7.0786,141.2,141.17,7.0797]
[1750711643231,7.0788,141.19,141.16,7.08]
[1750711643430,59.24079312,141.23,141.14,11.22879312]
[1750711643734,7.0796,141.18,141.15,7.0805]
[1750711643926,11.22879312,141.21,141.13,43.2714]
[1750711644439,7.0793,141.18,141.15,7.0805]
[1750711644736,11.22879312,141.21,141.15,7.0805]
[1750711645133,7.0795,141.18,141.15,7.0805]
[1750711646131,7.0795,141.18,141.16,7.0802]
[1750711646336,52.16879312,141.23,141.14,11.22879312]
[1750711646539,52.16879312,141.24,141.16,11.22879312]
[1750711646836,40.94,141.24,141.16,11.22879312]
[1750711647025,7.0773,141.22,141.19,7.0784]
[1750711647226,43.1594,141.26,141.18,11.22879312]
[1750711647442,20.70961376,141.32,141.25,7.0754]
[1750711647443,40.94,141.29,141.25,7.0754]
[1750711647629,40.94,141.29,141.22,11.22879312]
[1750711648240,11.22879312,141.28,141.2,52.16879312]
[1750711648438,13.62329312,141.28,141.2,52.16879312]
[1750711648741,7.0761,141.25,141.21,7.0774]
[1750711649042,11.22879312,141.26,141.19,146.0]
[1750711649246,40.94,141.25,141.19,146.0]
[1750711649652,11.22879312,141.24,141.19,146.0]
[1750711649847,11.22879312,141.24,141.19,153.0785]
[1750711651651,7.0777,141.22,141.19,153.0785]
[1750711652351,7.0781,141.21,141.19,146.0]
[1750711652643,11.22879312,141.24,141.19,146.0]
[1750711652846,18.30079312,141.24,141.14,40.94]
[1750711653048,11.22879312,141.22,141.14,52.16879312]
[1750711653348,7.0787,141.2,141.17,7.0795]
[1750711653540,11.22879312,141.22,141.17,7.0795]
[1750711653941,7.0787,141.2,141.17,7.0795]
[1750711654649,7.0789,141.19,141.17,7.0795]
[1750711655136,11.22879312,141.22,141.14,40.94]
[1750711655336,40.94,141.21,141.13,164.15219312]
[1750711655543,40.94,141.21,141.13,152.9234]
[1750711655845,43.3713,141.21,141.15,7.0804]
[1750711656242,48.018,141.21,141.18,7.0791]
[1750711656448,40.94,141.21,141.16,11.22879312]
[1750711656950,7.0785,141.2,141.17,7.0795]
[1750711657251,40.94,141.21,141.17,7.0795]
[1750711657651,7.0783,141.2,141.17,7.0795]
[1750711657847,40.94,141.21,141.18,7.0791]
[1750711658149,48.0182,141.21,141.18,7.0791]
[1750711658356,40.94,141.21,141.18,7.0791]
[1750711658744,48.018,141.21,141.18,7.0791]
[1750711659348,40.68,141.25,141.16,11.22879312]
[1750711659548,40.68,141.25,141.18,11.22879312]
[1750711659848,7.0766,141.24,141.21,7.0775]
[1750711660244,40.68,141.25,141.21,7.0775]
[1750711660449,7.0772,141.23,141.18,11.22879312]
[1750711662047,7.0773,141.22,141.2,7.078]
[1750711663158,7.0773,141.22,141.19,7.0785]
[1750711663461,7.0779,141.21,141.18,11.22879312]
[1750711663657,40.68,141.25,141.18,7.0792]
[1750711663959,7.0781,141.21,141.18,7.0792]
[1750711664159,11.22879312,141.24,141.18,7.0792]
[1750711664459,11.22879312,141.24,141.16,11.22879312]
[1750711664460,40.68,141.25,141.19,7.0785]
[1750711664651,7.0777,141.22,141.19,7.0785]
[1750711664850,40.68,141.25,141.2,7.0779]
[1750711665047,47.7562,141.25,141.18,11.22879312]
[1750711665262,40.68,141.25,141.18,11.22879312]
[1750711665551,40.68,141.25,141.21,7.0777]
[1750711665759,7.0766,141.24,141.21,7.0777]
[1750711667752,47.752,141.25,141.14,8.52462846]
[1750711667955,11.23195369,141.2,141.11,11.23195369]
[1750711668258,7.0803,141.16,141.1,54.34665369]
[1750711668455,11.23539221,141.17,141.1,54.35009221]
[1750711668765,11.23539221,141.15,141.08,1.23220735]
[1750711669071,14.53890035,141.19,141.04,178.15956939]
[1750711669072,11.23539221,141.13,141.04,178.15956939]
[1750711669268,7.0836,141.1,141.06,7.0849]
[1750711669650,40.68,141.12,141.06,7.0849]
[1750711669866,7.0838,141.09,141.05,7.0856]
[1750711670054,45.1969,141.12,141.04,178.15956939]
[1750711670458,45.1969,141.12,141.04,166.92417718]
[1750711670659,45.1969,141.12,141.04,178.15956939]
[1750711670964,7.084,141.09,141.04,166.92417718]
[1750711671461,7.0843,141.08,141.05,7.0856]
[1750711671661,45.1969,141.12,141.05,7.0856]
[1750711671960,7.0841,141.09,141.05,7.0856]
[1750711673462,7.0833,141.1,141.04,166.92417718]
[1750711673659,40.68,141.12,141.07,11.23539221]
[1750711673852,51.91539221,141.15,141.04,168.15762925]
[1750711674058,11.23539221,141.11,141.04,1.23345207]
[1750711674258,51.91539221,141.11,141.04,1.23345207]
[1750711674459,7.0841,141.09,141.05,7.0857]
[1750711674763,51.91539221,141.11,141.04,1.23345207]
[1750711675565,7.0842,141.09,141.04,8.31935207]
[1750711675752,7.0842,141.09,141.04,1.23345207]
[1750711676068,40.68,141.11,141.05,11.23539221]
[1750711676262,47.7628,141.11,141.07,7.0845]
[1750711677560,47.7628,141.11,141.05,11.23539221]
[1750711677762,7.0834,141.1,141.05,11.23539221]
[1750711677964,40.68,141.11,141.04,1.23345207]
[1750711678871,47.763,141.11,141.05,11.23539221]
[1750711679069,40.68,141.11,141.05,11.23539221]
[1750711679968,40.7,141.14,141.07,11.23539221]
[1750711680161,7.082,141.13,141.1,7.0831]
[1750711680571,7.082,141.13,141.07,11.23539221]
[1750711680871,7.082,141.13,141.09,7.0833]
[1750711681473,40.7,141.14,141.07,11.23539221]
[1750711681771,40.7,141.14,141.09,7.0834]
[1750711681964,11.23539221,141.12,141.05,40.7]
[1750711682164,11.23539221,141.12,141.05,51.93539221]
[1750711682370,51.93539221,141.14,141.08,7.0842]
[1750711682567,40.7,141.14,141.05,51.93539221]
[1750711682765,40.7,141.15,141.09,11.23539221]
[1750711682963,47.7811,141.15,141.11,7.0824]
[1750711683166,40.7,141.15,141.08,11.23539221]
[1750711683381,40.7,141.15,141.08,7.084]
[1750711683382,51.93539221,141.15,141.08,7.084]
[1750711683579,51.93539221,141.15,141.05,51.93539221]
[1750711683580,7.0828,141.11,141.05,51.93539221]
[1750711683872,11.23539221,141.13,141.05,51.93539221]
[1750711684075,2.3694,141.12,141.05,51.93539221]
[1750711684268,40.7,141.11,141.05,51.93539221]
[1750711684571,40.7,141.11,141.05,11.23539221]
[1750711685472,47.783,141.11,141.07,7.0846]
[1750711685774,47.783,141.11,141.08,7.0842]
[1750711686763,47.783,141.11,141.07,7.0845]
[1750711687265,7.0834,141.1,141.07,7.0845]
[1750711687667,7.0834,141.1,141.06,7.085]
[1750711687868,7.0834,141.1,141.05,11.23539221]
[1750711688260,47.783,141.11,141.07,7.0843]
[1750711688466,47.783,141.11,141.05,11.23539221]
[1750711689670,7.0833,141.1,141.05,11.23539221]
[1750711689871,40.7,141.11,141.04,1.23345207]
[1750711690063,40.7,141.11,141.06,7.085]
[1750711690269,7.0835,141.1,141.06,7.085]
[1750711690467,7.0835,141.1,141.04,12.46884428]
[1750711690677,47.783,141.11,141.06,11.23539221]
[1750711690862,40.56,141.14,141.08,11.23539221]
[1750711691172,7.082,141.13,141.08,11.23539221]
[1750711691769,40.56,141.14,141.08,11.23539221]
[1750711691976,40.56,141.15,141.08,11.23539221]
[1750711692476,40.56,141.15,141.1,11.23539221]
[1750711692865,7.0815,141.14,141.11,7.0824]
[1750711693064,40.56,141.15,141.1,11.23539221]
[1750711693274,40.56,141.15,141.1,7.0832]
[1750711693275,7.082,141.13,141.1,7.0832]
[1750711693572,40.56,141.15,141.08,11.23539221]
[1750711693877,40.56,141.15,141.1,11.23539221]
[1750711694272,4.5834,141.17,141.1,11.23539221]
[1750711694477,7.0805,141.16,141.13,7.0815]
[1750711694676,654.3472,141.18,141.12,11.23539221]
[1750711694878,613.7872,141.18,141.14,11.23539221]
[1750711695083,7.0795,141.18,141.15,7.0807]
[1750711695581,47.639,141.19,141.14,11.23539221]
[1750711695875,2.2275,141.21,141.16,11.23539221]
[1750711696178,7.0785,141.2,141.16,18.31549221]
[1750711696380,2.2275,141.21,141.16,7.0801]
[1750711696569,2.2275,141.21,141.15,11.23539221]
[1750711696570,7.0787,141.2,141.17,7.0797]
[1750711697488,40.56,141.22,141.17,11.23539221]
[1750711697785,40.56,141.22,141.15,11.23539221]
[1750711698078,7.0785,141.2,141.16,7.08]
[1750711698672,40.56,141.22,141.16,7.08]
[1750711699775,40.56,141.22,141.15,11.23539221]
[1750711700281,40.56,141.22,141.12,16.00079221]
[1750711700282,11.23539221,141.21,141.13,11.23539221]
[1750711700478,7.0797,141.18,141.15,7.0807]
[1750711700785,11.23539221,141.21,141.13,11.23539221]
[1750711701286,11.23539221,141.2,141.12,4.7654]
[1750711701881,7.0798,141.17,141.14,7.0809]
[1750711702277,7.0798,141.17,141.15,7.0806]
[1750711703985,7.0798,141.17,141.11,54.03089221]
[1750711703986,11.23539221,141.18,141.11,40.56]
[1750711704285,51.79539221,141.18,141.11,40.56]
[1750711704587,40.56,141.18,141.11,40.56]
[1750711705384,7.0803,141.16,141.13,7.0815]
[1750711705580,7.0803,141.16,141.11,40.56]
[1750711705887,40.56,141.23,141.14,11.23539221]
[1750711706082,712.86,141.25,141.12,11.23539221]
[1750711706083,2.4155,141.27,141.2,11.23539221]
[1750711706279,7.074,141.29,141.24,7.0761]
[1750711706479,56.38919221,141.31,141.24,11.23539221]
[1750711706983,45.1538,141.31,141.24,11.23539221]
[1750711707485,11.23539221,141.29,141.21,11.23539221]
[1750711708187,11.23539221,141.29,141.22,7.0769]
[1750711708586,11.23539221,141.29,141.21,11.23539221]
[1750711708778,56.38919221,141.31,141.23,11.23539221]
[1750711709386,45.1538,141.31,141.23,11.23539221]
[1750711709586,45.1538,141.31,141.2,197.37539221]
[1750711709781,7.0734,141.3,141.24,11.23539221]
[1750711709987,45.1538,141.31,141.24,11.23539221]
[1750711710381,45.1538,141.31,141.26,7.0752]
[1750711710590,45.1538,141.31,141.24,11.23539221]
[1750711711090,52.2269,141.31,141.26,7.0749]
[1750711711491,45.1538,141.31,141.26,7.0749]
[1750711711794,4.5938,141.31,141.2,197.37539221]
[1750711711995,6.8369,141.37,141.3,11.23539221]
[1750711712197,6.8369,141.37,141.2,768.23539221]
[1750711712198,47.3769,141.41,141.33,11.23539221]
[1750711712492,58.61229221,141.41,141.33,11.23539221]
[1750711712791,58.61229221,141.41,141.34,18.30619221]
[1750711712995,58.61229221,141.41,141.31,40.54]
[1750711713598,58.61229221,141.41,141.33,7.0714]
[1750711714077,7.0698,141.37,141.33,7.0714]
[1750711714282,58.61229221,141.41,141.32,11.23539221]
[1750711714592,7.0701,141.37,141.32,11.23539221]
[1750711714794,7.0701,141.37,141.33,7.0714]
[1750711715181,7.0703,141.36,141.32,11.23539221]
[1750711715590,11.23539221,141.39,141.32,11.23539221]
[1750711715887,7.07,141.37,141.32,11.23539221]
[1750711716088,7.07,141.37,141.33,7.0716]
[1750711717891,7.07,141.37,141.34,7.0711]
[1750711718090,58.61229221,141.41,141.34,7.0711]
[1750711718091,47.3769,141.41,141.34,11.23539221]
[1750711718590,47.3769,141.41,141.36,7.0699]
[1750711719097,47.3769,141.41,141.34,11.23539221]
[1750711719595,7.0697,141.38,141.34,18.30649221]
[1750711719894,58.61229221,141.41,141.34,18.30649221]
[1750711720595,7.0695,141.38,141.35,7.0707]
[1750711720788,7.0695,141.38,141.34,11.23539221]
[1750711720992,7.0695,141.38,141.34,18.30619221]
[1750711721391,7.0698,141.37,141.34,18.30619221]
[1750711722095,58.61229221,141.41,141.33,7.0716]
[1750711722997,7.07,141.37,141.34,7.0711]
[1750711724293,11.23539221,141.37,141.28,62.0]
[1750711724501,47.3769,141.41,141.23,11.23539221]
[1750711724502,11.23539221,141.31,141.23,11.23539221]
[1750711724903,18.30829221,141.31,141.23,11.23539221]
[1750711725201,41.64,141.32,141.21,60.06399221]
[1750711725202,11.23539221,141.3,141.21,60.06399221]
[1750711725402,7.0738,141.29,141.21,60.06399221]
[1750711725594,11.23539221,141.3,141.21,60.06399221]
[1750711725795,7.0743,141.28,141.24,7.0759]
[1750711726392,11.23539221,141.28,141.21,41.64]
[1750711728007,7.0748,141.27,141.23,7.0764]
[1750711728398,2.299,141.29,141.22,11.23539221]
[1750711728610,7.0742,141.28,141.24,7.0759]
[1750711729503,2.299,141.29,141.22,11.23539221]
[1750711729504,9.3731,141.29,141.25,7.0757]
[1750711729703,2.299,141.29,141.22,11.23539221]
[1750711729897,41.66,141.28,141.19,11.23539221]
[1750711730095,11.23539221,141.26,141.19,11.23539221]
[1750711730299,11.23539221,141.26,141.18,11.23539221]
[1750711730703,7.0764,141.24,141.2,7.0779]
[1750711730906,41.66,141.24,141.17,41.66]
[1750711731308,7.0771,141.23,141.19,7.0785]
[1750711731509,41.66,141.24,141.17,41.66]
[1750711731706,44.0111,141.24,141.17,41.66]
[1750711731900,44.0111,141.24,141.16,11.23539221]
[1750711732411,7.0775,141.22,141.18,7.079]
[1750711733712,7.077,141.23,141.19,7.0784]
[1750711733908,44.0111,141.24,141.19,7.0784]
[1750711734805,44.0111,141.24,141.18,11.23539221]
[1750711735618,51.0874,141.24,141.21,7.0775]
[1750711736418,44.0111,141.24,141.21,7.0775]
[1750711737022,51.0874,141.24,141.21,7.0775]
[1750711737626,9.4274,141.24,141.21,7.0775]
[1750711739320,2.3511,141.24,141.21,7.0775]
[1750711742028,2.3511,141.24,141.19,11.23539221]
[1750711742029,2.3511,141.24,141.22,7.0772]
[1750711742322,7.0759,141.25,141.22,7.0772]
[1750711742524,7.0759,141.25,141.19,11.23539221]
[1750711742725,7.0764,141.24,141.21,7.0775]
[1750711743120,52.89539221,141.26,141.14,217.9991]
[1750711743328,11.23539221,141.24,141.15,52.91539221]
[1750711743717,7.0781,141.21,141.17,7.0793]
[1750711744031,11.23971079,141.18,141.04,9.71606425]
[1750711744216,11.23971079,141.09,141.04,1.23345207]
[1750711744418,52.928807,141.09,141.01,18.336507]
[1750711744620,52.928807,141.09,141.01,7.0877]
[1750711744921,52.928807,141.12,141.03,11.248807]
[1750711745125,11.248807,141.1,141.02,52.928807]
[1750711745319,7.0848,141.07,141.02,60.016007]
[1750711745518,11.248807,141.1,141.02,60.016007]
[1750711745721,11.248807,141.08,141.02,41.68]
[1750711746928,7.0856,141.06,141.02,48.7672]
[1750711747228,7.0856,141.06,141.02,41.68]
[1750711747928,7.0856,141.06,141.03,7.0867]
[1750711748119,11.248807,141.08,141.02,41.68]
[1750711748319,11.248807,141.08,141.03,7.0867]
[1750711748520,11.248807,141.08,141.02,41.68]
[1750711748725,7.0856,141.06,141.02,41.68]
[1750711748933,2.3692,141.11,141.02,41.68]
[1750711749127,7.0854,141.06,141.02,41.68]
[1750711749517,11.248807,141.09,141.03,7.0865]
[1750711749717,7.0851,141.07,141.03,7.0865]
[1750711750424,2.3692,141.11,141.02,52.928807]
[1750711750630,53.208807,141.14,141.06,11.248807]
[1750711751025,7.0825,141.12,141.08,7.084]
[1750711751733,7.0829,141.11,141.08,7.084]
[1750711751936,53.208807,141.14,141.07,7.0846]
[1750711752325,53.208807,141.14,141.04,11.248807]
[1750711752526,7.0835,141.1,141.04,11.248807]
[1750711752731,53.208807,141.14,141.02,41.68]
[1750711752732,11.248807,141.12,141.02,41.68]
[1750711752932,11.248807,141.12,141.03,11.248807]
[1750711753227,11.248807,141.12,141.05,7.0855]
[1750711753726,11.248807,141.12,141.06,7.0852]
[1750711754125,11.248807,141.12,141.03,11.248807]
[1750711754330,11.248807,141.12,141.05,7.0855]
[1750711754534,11.248807,141.12,141.03,11.248807]
[1750711754933,11.248807,141.12,141.05,7.0854]
[1750711755333,11.248807,141.12,141.03,11.248807]
[1750711755540,7.0841,141.09,141.06,7.0852]
[1750711758043,11.248807,141.12,141.05,7.0856]
[1750711758440,11.248807,141.12,141.03,11.248807]
[1750711760136,11.248807,141.12,141.02,41.68]
[1750711760336,49.032,141.14,141.02,41.68]
[1750711760337,11.248807,141.1,141.02,41.68]
[1750711760544,53.228807,141.1,141.02,41.68]
[1750711760746,41.98,141.1,141.03,11.248807]
[1750711761340,7.0843,141.08,141.03,11.248807]
[1750711762040,7.0843,141.08,141.04,7.0859]
[1750711762442,7.0843,141.08,141.05,7.0857]
[1750711764553,7.0843,141.08,141.03,11.248807]
[1750711764554,7.084,141.09,141.06,7.0852]
[1750711764859,41.98,141.1,141.03,11.248807]
[1750711765244,41.98,141.1,141.03,13.558807]
[1750711765753,7.072,141.15,141.05,11.248807]
[1750711766051,46.4902,141.16,141.07,11.248807]
[1750711766256,7.0827,141.12,141.09,7.0837]
[1750711766455,11.248807,141.15,141.09,7.0837]
[1750711766856,11.248807,141.13,141.06,103.98]
[1750711767357,7.083,141.11,141.08,7.0839]
[1750711767554,11.248807,141.13,141.08,7.0839]
[1750711768954,41.98,141.16,141.09,11.248807]
[1750711769351,49.0606,141.16,141.09,11.248807]
[1750711769554,49.0606,141.16,141.12,7.0818]
[1750711769752,49.0606,141.16,141.11,11.248807]
[1750711769949,46.6703,141.19,141.13,11.248807]
[1750711770163,44.3532,141.22,141.15,11.248807]
[1750711770559,7.0781,141.21,141.15,11.248807]
[1750711770762,7.0781,141.21,141.18,7.079]
[1750711771063,44.3532,141.22,141.17,11.248807]
[1750711771262,44.3532,141.22,141.18,7.079]
[1750711771564,44.3532,141.22,141.17,11.248807]
[1750711772058,51.4307,141.22,141.17,11.248807]
[1750711772464,51.4307,141.22,141.19,7.0785]
[1750711772960,41.98,141.22,141.17,11.248807]
[1750711773159,41.98,141.22,141.19,7.0787]
[1750711773567,49.0577,141.22,141.19,7.0787]
[1750711774263,7.0778,141.21,141.19,7.0787]
[1750711774664,41.98,141.22,141.19,7.0787]
[1750711775370,49.0575,141.22,141.19,7.0787]
[1750711776163,7.0775,141.22,141.19,7.0787]
[1750711776363,2.4082,141.24,141.19,7.0787]
[1750711776568,2.4082,141.24,141.2,7.0781]
[1750711776768,2.4082,141.24,141.19,11.248807]
[1750711777272,2.2821,141.26,141.21,11.248807]
[1750711777662,7.076,141.25,141.22,7.0772]
[1750711778773,7.0763,141.24,141.21,18.326307]
[1750711779473,7.0763,141.24,141.22,7.0772]
[1750711780176,7.076,141.25,141.22,7.0772]
[1750711781259,7.076,141.25,141.19,53.208807]
[1750711781670,9.3577,141.26,141.19,53.208807]
[1750711781867,41.96,141.28,141.21,11.248807]
[1750711782069,53.208807,141.28,141.21,11.248807]
[1750711782475,7.0757,141.25,141.22,7.077]
[1750711782973,53.208807,141.28,141.21,11.248807]
[1750711783168,41.96,141.28,141.21,11.248807]
[1750711783663,7.0755,141.26,141.23,7.0765]
[1750711783868,53.208807,141.28,141.19,41.96]
[1750711784180,7.0765,141.24,141.21,7.0774]
[1750711784771,41.96,141.28,141.2,11.248807]
[1750711785272,7.076,141.25,141.22,7.077]
[1750711785473,41.96,141.28,141.2,11.248807]
[1750711785671,41.96,141.28,141.24,7.0762]
[1750711786374,41.96,141.28,141.25,7.0755]
[1750711786572,41.96,141.28,141.22,11.248807]
[1750711786968,49.0343,141.28,141.25,7.0755]
[1750711787273,4.7811,141.3,141.24,11.248807]
[1750711787480,7.074,141.29,141.26,7.075]
[1750711787683,4.7811,141.3,141.24,11.248807]
[1750711788183,11.8547,141.3,141.27,7.0747]
[1750711788364,4.7811,141.3,141.24,11.248807]
[1750711789678,7.0738,141.29,141.26,7.0749]
[1750711789879,4.7811,141.3,141.26,7.0749]
[1750711790482,4.7811,141.3,141.23,41.06]
[1750711791382,4.7811,141.3,141.25,7.0757]
[1750711791880,7.0748,141.27,141.25,7.0757]
[1750711792985,7.0752,141.26,141.24,7.076]
[1750711793387,21.22,141.24,141.06,7.36336054]
[1750711793681,7.36336054,141.17,141.08,7.36336054]
[1750711793879,41.06,141.16,141.08,7.36336054]
[1750711794085,7.0815,141.14,141.08,14.44746054]
[1750711794272,7.0815,141.14,141.08,11.23806879]
[1750711794476,41.06,141.14,141.09,7.0834]
[1750711794678,48.1418,141.14,141.09,7.0834]
[1750711794878,41.06,141.14,141.09,7.0834]
[1750711795584,11.23806879,141.17,141.09,7.0834]
[1750711795780,11.23806879,141.15,141.05,11.23806879]
[1750711795976,11.23806879,141.15,141.02,41.06]
[1750711795977,11.23806879,141.15,141.07,11.23806879]
[1750711796177,41.06,141.14,141.07,11.23806879]
[1750711796371,11.23806879,141.16,141.07,11.23806879]
[1750711796578,41.06,141.15,141.07,11.23806879]
[1750711796984,7.0821,141.13,141.07,11.23941101]
[1750711797484,7.0821,141.13,141.09,7.0834]
[1750711797784,41.08,141.15,141.09,11.23941101]
[1750711797987,41.08,141.16,141.11,11.23941101]